fUST/lending_fUST_20250708
["ID","MTS","AMOUNT","RATE_DAILY","PERIOD"]
[370379619,1751987454502,-1094.43,0.0002,2]
[370379620,1751987454512,-389.33,0.0002,2]
[370379621,1751987454522,-460.0,0.0002,2]
[370379622,1751987454532,-460.0,0.0002,2]
[370379623,1751987454542,-460.0,0.0002,2]
[370379624,1751987454551,-460.0,0.0002,2]
[370379625,1751987454561,-610.0,0.0002,2]
[370379626,1751987454570,-460.0,0.0002,2]
[370379627,1751987454580,-460.0,0.0002,2]
[370379628,1751987454590,-460.0,0.0002,2]
[370379629,1751987454599,-460.0,0.0002,2]
[370379630,1751987454609,-460.0,0.0002,2]
[370379631,1751987454619,-460.0,0.0002,2]
[370379632,1751987454628,-460.0,0.0002,2]
[370379633,1751987454638,-702.73,0.0002,2]
[370379634,1751987454647,-460.0,0.0002,2]
[370379635,1751987454658,-460.0,0.0002,2]
[370379636,1751987454668,-430.0,0.0002,2]
[370379637,1751987454677,-460.0,0.0002,2]
[370379638,1751987454687,-460.0,0.0002,2]
[370379639,1751987454697,-500.0,0.0002,2]
[370379640,1751987454707,-460.0,0.0002,2]
[370379641,1751987454717,-460.0,0.0002,2]
[370379642,1751987454728,-460.0,0.0002,2]
[370379643,1751987454738,-460.0,0.0002,2]
[370379644,1751987454747,-460.0,0.0002,2]
[370379645,1751987454756,-2535.92,0.0002,2]
[370379646,1751987454766,-1117.62,0.0002,2]
[370379647,1751987454775,-460.0,0.0002,2]
[370379648,1751987454785,-538.23191412,0.0002,2]
[370379649,1751987454794,-460.0,0.0002,2]
[370379650,1751987454804,-460.0,0.0002,2]
[370379651,1751987454813,-460.0,0.0002,2]
[370379652,1751987454822,-460.0,0.0002,2]
[370379653,1751987454832,-489.06,0.0002,2]
[370379654,1751987454841,-638.54,0.0002,2]
[370379655,1751987454851,-460.0,0.0002,2]
[370379656,1751987454861,-460.0,0.0002,2]
[370379657,1751987454871,-460.0,0.0002,2]
[370379658,1751987454881,-906.56,0.0002,2]
[370379659,1751987454891,-6605.47,0.0002,2]
[370379660,1751987454901,-460.0,0.0002,2]
[370379661,1751987454910,-1836.51,0.0002,2]
[370379662,1751987454920,-3531.13,0.0002,2]
[370379663,1751987454930,-460.0,0.0002,2]
[370379664,1751987454940,-460.0,0.0002,2]
[370379665,1751987454949,-769.53,0.0002,2]
[370379666,1751987454959,-460.0,0.0002,2]
[370379667,1751987454968,-460.0,0.0002,2]
[370379668,1751987454978,-4999.22,0.0002,2]
[370379669,1751987454987,-460.0,0.0002,2]
[370379670,1751987454997,-460.0,0.0002,2]
[370379671,1751987455007,-1438.66,0.0002,2]
[370379672,1751987455016,-460.0,0.0002,2]
[370379673,1751987455025,-1029.02,0.0002,2]
[370379674,1751987455034,-551.13,0.0002,2]
[370379675,1751987455043,-3199.43,0.0002,2]
[370379676,1751987455053,-460.0,0.0002,2]
[370379677,1751987455062,-460.0,0.0002,2]
[370379678,1751987455072,-460.0,0.0002,2]
[370379679,1751987455081,-1136.93,0.0002,2]
[370379680,1751987455091,-460.0,0.0002,2]
[370379681,1751987455100,-1227.68,0.0002,2]
[370379682,1751987455110,-802.39,0.0002,2]
[370379683,1751987455120,-460.0,0.0002,2]
[370379684,1751987455130,-460.0,0.0002,2]
[370379685,1751987455141,-2315.09,0.0002,2]
[370379686,1751987455150,-460.0,0.0002,2]
[370379687,1751987455161,-779.96,0.0002,2]
[370379688,1751987455171,-460.0,0.0002,2]
[370379689,1751987455186,-768.26,0.0002,2]
[370379690,1751987455196,-460.0,0.0002,2]
[370379691,1751987455206,-460.0,0.0002,2]
[370379692,1751987455215,-814.03,0.0002,2]
[370379693,1751987455226,-1247.08,0.0002,2]
[370379694,1751987455236,-460.0,0.0002,2]
[370379695,1751987455246,-1458.11,0.0002,2]
[370379696,1751987455256,-444.45244042,0.0002,2]
[370379697,1751987455266,-1873.14,0.0002,2]
[370379698,1751987455275,-460.0,0.0002,2]
[370379699,1751987455285,-503.68,0.0002,2]
[370379700,1751987455294,-460.0,0.0002,2]
[370379701,1751987455303,-460.0,0.0002,2]
[370379702,1751987455313,-460.0,0.0002,2]
[370379703,1751987455322,-510.97,0.0002,2]
[370379704,1751987455331,-460.0,0.0002,2]
[370379705,1751987455341,-460.0,0.0002,2]
[370379706,1751987455351,-1198.65,0.0002,2]
[370379707,1751987455361,-460.0,0.0002,2]
[370379708,1751987455370,-460.0,0.0002,2]
[370379709,1751987455379,-497.51327461,0.0002,2]
[370379710,1751987455388,-460.0,0.0002,2]
[370379711,1751987455398,-485.36,0.0002,2]
[370379712,1751987455407,-3642.47,0.0002,2]
[370379713,1751987455416,-460.0,0.0002,2]
[370379714,1751987455425,-460.0,0.0002,2]
[370379715,1751987455435,-3488.24,0.0002,2]
[370379716,1751987455444,-460.0,0.0002,2]
[370379717,1751987455454,-881.6,0.0002,2]
[370379718,1751987455464,-460.0,0.0002,2]
[370379719,1751987455473,-1190.04,0.0002,2]
[370379720,1751987455482,-5308.08,0.0002,2]
[370379721,1751987455491,-858.29,0.0002,2]
[370379722,1751987455501,-460.0,0.0002,2]
[370379723,1751987455511,-460.0,0.0002,2]
[370379724,1751987455522,-460.0,0.0002,2]
[370379725,1751987455531,-460.0,0.0002,2]
[370379726,1751987455540,-693.69,0.0002,2]
[370379727,1751987455550,-889.03,0.0002,2]
[370379728,1751987455559,-911.11,0.0002,2]
[370379729,1751987455568,-460.0,0.0002,2]
[370379730,1751987455578,-460.0,0.0002,2]
[370379731,1751987455587,-460.0,0.0002,2]
[370379732,1751987455597,-849.52,0.0002,2]
[370379733,1751987455607,-1608.55,0.0002,2]
[370379734,1751987455616,-512.35,0.0002,2]
[370379735,1751987455626,-1680.8,0.0002,2]
[370379736,1751987455635,-3263.91,0.0002,2]
[370379737,1751987455645,-460.0,0.0002,2]
[370379738,1751987455654,-460.0,0.0002,2]
[370379739,1751987455664,-825.63,0.0002,2]
[370379740,1751987455673,-1917.38,0.0002,2]
[370379741,1751987455683,-235.88028879,0.0002,2]
[370379742,1751987455692,-428.47155765,0.0002,2]
[370379743,1751987455702,-470.98444585,0.0002,2]
[370379744,1751987455711,-524.76607357,0.0002,2]
[370379745,1751987455721,-1349.37,0.0002,2]
[370379746,1751987455730,-7169.81,0.0002,2]
[370379747,1751987455740,-460.0,0.0002,2]
[370379748,1751987455750,-460.0,0.0002,2]
[370379749,1751987455760,-764.25,0.0002,2]
[370379750,1751987455770,-460.0,0.0002,2]
[370379751,1751987455780,-3212.24,0.0002,2]
[370379752,1751987455789,-460.0,0.0002,2]
[370379753,1751987455798,-975.12,0.0002,2]
[370379754,1751987455808,-460.0,0.0002,2]
[370379755,1751987455818,-460.0,0.0002,2]
[370379756,1751987455827,-3732.02,0.0002,2]
[370379757,1751987455837,-517.2,0.0002,2]
[370379758,1751987455846,-1124.04,0.0002,2]
[370379759,1751987455857,-460.0,0.0002,2]
[370379760,1751987455866,-1000.0,0.00020021,2]
[370379761,1751987455875,-1000.0,0.00020021,2]
[370379762,1751987455883,-1200.0,0.00020021,2]
[370379763,1751987455892,-935.2880864,0.00020021,2]
[370379764,1751987455902,-887.5540149,0.00020037,2]
[370379765,1751987455911,-500.0,0.00020058,2]
[370379766,1751987455921,-151.0,0.000201,3]
[370379767,1751987455930,-3853.49006069,0.00020107,2]
[370379768,1751987455939,-151.0,0.00020107,2]
[370379769,1751987455948,-151.0,0.00020107,2]
[370379770,1751987455958,-151.0,0.00020107,2]
[370379771,1751987455968,-151.0,0.00020107,2]
[370379772,1751987455978,-151.0,0.00020107,2]
[370379773,1751987455987,-151.0,0.00020107,2]
[370379774,1751987455996,-204.294437,0.00020107,2]
[370379775,1751987456006,-204.294437,0.00020107,2]
[370379776,1751987456016,-500.0,0.00020153,2]
[370379777,1751987456025,-500.79233465,0.00020168,2]
[370379778,1751987456035,-150.0,0.00020174,2]
[370379779,1751987456045,-150.0,0.00020174,2]
[370379780,1751987456055,-150.0,0.00020174,2]
[370379781,1751987456064,-967.0,0.00020174,2]
[370379782,1751987456074,-705.0,0.00020174,2]
[370379783,1751987456083,-2153.0,0.00020174,2]
[370379784,1751987456093,-207.72812,0.00020174,2]
[370379785,1751987456103,-207.72812,0.00020174,2]
[370379786,1751987456113,-151.0,0.00020174,2]
[370379787,1751987456122,-199.080754,0.00020187,2]
[370379788,1751987456131,-1207.54,0.00020233,3]
[370379789,1751987456140,-603.78,0.00020233,3]
[370379790,1751987456150,-301.88,0.00020233,3]
[370379791,1751987456158,-500.0,0.00020248,2]
[370379792,1751987456166,-500.0,0.00020263,2]
[370379793,1751987456179,-217.182618,0.00020268,2]
[370379794,1751987456188,-217.182618,0.00020268,2]
[370379795,1751987456198,-500.0,0.00020268,2]
[370379796,1751987456207,-1511.87995822,0.00020268,2]
[370379797,1751987456216,-293.45627482,0.00020272,2]
[370379798,1751987456227,-460.0,0.00020273,2]
[370379799,1751987456237,-460.0,0.00020273,2]
[370379800,1751987456247,-460.0,0.00020273,2]
[370379801,1751987456258,-311.37302137,0.00020273,2]
[370379802,1751987456268,-520.37,0.00020273,2]
[370379803,1751987456277,-514.09306818,0.00020273,2]
[370379804,1751987456287,-460.0,0.00020273,2]
[370379805,1751987456297,-328.76327057,0.00020273,2]
[370379806,1751987456307,-460.0,0.00020273,2]
[370379807,1751987456317,-644.05,0.00020273,2]
[370379808,1751987456328,-460.0,0.00020273,2]
[370379809,1751987456337,-151.0,0.00020273,2]
[370379810,1751987456347,-460.0,0.00020273,2]
[370379811,1751987456359,-200.18501171,0.00020273,2]
[370379812,1751987456369,-460.0,0.00020273,2]
[370379813,1751987456379,-460.0,0.00020273,2]
[370379814,1751987456390,-460.0,0.00020273,2]
[370379815,1751987456401,-151.0,0.00020273,2]
[370379816,1751987456412,-151.0,0.00020273,2]
[370379817,1751987456423,-151.0,0.00020273,2]
[370379818,1751987456434,-460.0,0.00020273,2]
[370379819,1751987456444,-460.0,0.00020273,2]
[370379820,1751987456454,-460.0,0.00020273,2]
[370379821,1751987456464,-460.0,0.00020273,2]
[370379822,1751987456474,-157.67525,0.00020273,2]
[370379823,1751987456484,-157.67525,0.00020273,2]
[370379824,1751987456494,-460.0,0.00020273,2]
[370379825,1751987456503,-590.3,0.00020273,2]
[370379826,1751987456512,-460.0,0.00020273,2]
[370379827,1751987456522,-460.0,0.00020273,2]
[370379828,1751987456532,-460.0,0.00020273,2]
[370379829,1751987456541,-460.0,0.00020273,2]
[370379830,1751987456551,-460.0,0.00020273,2]
[370379831,1751987456560,-460.0,0.00020273,2]
[370379832,1751987456569,-460.0,0.00020273,2]
[370379833,1751987456579,-460.0,0.00020273,2]
[370379834,1751987456726,-460.0,0.00020273,2]
[370379835,1751987456736,-460.0,0.00020273,2]
[370379836,1751987456746,-460.0,0.00020273,2]
[370379837,1751987456755,-571.79,0.00020273,2]
[370379838,1751987456764,-460.0,0.00020273,2]
[370379839,1751987456774,-460.0,0.00020273,2]
[370379840,1751987456784,-655.17,0.00020273,2]
[370379841,1751987456793,-460.0,0.00020273,2]
[370379842,1751987456802,-460.0,0.00020273,2]
[370379843,1751987456812,-389.25,0.00020273,2]
[370379844,1751987456821,-600.16,0.00020273,2]
[370379845,1751987456830,-460.0,0.00020273,2]
[370379846,1751987456840,-460.0,0.00020273,2]
[370379847,1751987456850,-460.0,0.00020273,2]
[370379848,1751987456861,-460.0,0.00020273,2]
[370379849,1751987456870,-460.0,0.00020273,2]
[370379850,1751987456880,-460.0,0.00020273,2]
[370379851,1751987456890,-460.0,0.00020273,2]
[370379852,1751987456899,-460.0,0.00020273,2]
[370379853,1751987456909,-460.0,0.00020273,2]
[370379854,1751987456918,-1068.61,0.00020273,2]
[370379855,1751987456928,-534.19152515,0.00020273,2]
[370379856,1751987456938,-460.0,0.00020273,2]
[370379857,1751987456947,-460.0,0.00020273,2]
[370379858,1751987456957,-460.0,0.00020273,2]
[370379859,1751987456967,-990.47,0.00020273,2]
[370379860,1751987456976,-460.0,0.00020273,2]
[370379861,1751987456986,-151.0,0.00020273,2]
[370379862,1751987456995,-460.0,0.00020273,2]
[370379863,1751987457005,-460.0,0.00020273,2]
[370379864,1751987457015,-460.0,0.00020273,2]
[370379865,1751987457024,-460.0,0.00020273,2]
[370379866,1751987457033,-529.08,0.00020273,2]
[370379867,1751987457043,-460.0,0.00020273,2]
[370379868,1751987457052,-460.0,0.00020273,2]
[370379869,1751987457061,-1094.43,0.00020273,2]
[370379870,1751987457071,-460.0,0.00020273,2]
[370379871,1751987457080,-460.0,0.00020273,2]
[370379872,1751987457090,-460.0,0.00020273,2]
[370379873,1751987457100,-610.0,0.00020273,2]
[370379874,1751987457110,-460.0,0.00020273,2]
[370379875,1751987457119,-460.0,0.00020273,2]
[370379876,1751987457129,-460.0,0.00020273,2]
[370379877,1751987457139,-484.26453525,0.00020273,2]
[370379878,1751987457149,-460.0,0.00020273,2]
[370379879,1751987457158,-702.73,0.00020273,2]
[370379880,1751987457167,-460.0,0.00020273,2]
[370379881,1751987457180,-460.0,0.00020273,2]
[370379882,1751987457190,-460.0,0.00020273,2]
[370379883,1751987457199,-460.0,0.00020273,2]
[370379884,1751987457208,-460.0,0.00020273,2]
[370379885,1751987457218,-416.38178185,0.00020273,2]
[370379886,1751987457229,-375.48260199,0.00020273,2]
[370379887,1751987457238,-2535.92,0.00020273,2]
[370379888,1751987457248,-1117.62,0.00020273,2]
[370379889,1751987457258,-460.0,0.00020273,2]
[370379890,1751987457268,-460.0,0.00020273,2]
[370379891,1751987457277,-489.06,0.00020273,2]
[370379892,1751987457287,-460.0,0.00020273,2]
[370379893,1751987457295,-638.54,0.00020273,2]
[370379894,1751987457305,-460.0,0.00020273,2]
[370379895,1751987457314,-460.0,0.00020273,2]
[370379896,1751987457323,-460.0,0.00020273,2]
[370379897,1751987457332,-906.56,0.00020273,2]
[370379898,1751987457342,-6605.47,0.00020273,2]
[370379899,1751987457352,-460.0,0.00020273,2]
[370379900,1751987457362,-1836.51,0.00020273,2]
[370379901,1751987457371,-3531.13,0.00020273,2]
[370379902,1751987457380,-460.0,0.00020273,2]
[370379903,1751987457390,-460.0,0.00020273,2]
[370379904,1751987457399,-769.53,0.00020273,2]
[370379905,1751987457408,-460.0,0.00020273,2]
[370379906,1751987457418,-4999.22,0.00020273,2]
[370379907,1751987457427,-460.0,0.00020273,2]
[370379908,1751987457437,-1438.66,0.00020273,2]
[370379909,1751987457446,-460.0,0.00020273,2]
[370379910,1751987457456,-1029.02,0.00020273,2]
[370379911,1751987457465,-551.13,0.00020273,2]
[370379912,1751987457474,-3199.43,0.00020273,2]
[370379913,1751987457484,-460.0,0.00020273,2]
[370379914,1751987457494,-460.0,0.00020273,2]
[370379915,1751987457503,-236.64201642,0.00020273,2]
[370379916,1751987457513,-1136.93,0.00020273,2]
[370379917,1751987457522,-1227.68,0.00020273,2]
[370379918,1751987457531,-802.39,0.00020273,2]
[370379919,1751987457541,-460.0,0.00020273,2]
[370379920,1751987457550,-460.0,0.00020273,2]
[370379921,1751987457560,-2315.09,0.00020273,2]
[370379922,1751987457569,-460.0,0.00020273,2]
[370379923,1751987457579,-779.96,0.00020273,2]
[370379924,1751987457588,-460.0,0.00020273,2]
[370379925,1751987457598,-768.26,0.00020273,2]
[370379926,1751987457609,-460.0,0.00020273,2]
[370379927,1751987457619,-460.0,0.00020273,2]
[370379928,1751987457628,-814.03,0.00020273,2]
[370379929,1751987457638,-1247.08,0.00020273,2]
[370379930,1751987457647,-460.0,0.00020273,2]
[370379931,1751987457656,-1458.11,0.00020273,2]
[370379932,1751987457665,-1873.14,0.00020273,2]
[370379933,1751987457675,-460.0,0.00020273,2]
[370379934,1751987457685,-503.68,0.00020273,2]
[370379935,1751987457694,-460.0,0.00020273,2]
[370379936,1751987457703,-460.0,0.00020273,2]
[370379937,1751987457713,-460.0,0.00020273,2]
[370379938,1751987457722,-510.97,0.00020273,2]
[370379939,1751987457731,-1198.65,0.00020273,2]
[370379940,1751987457741,-460.0,0.00020273,2]
[370379941,1751987457750,-460.0,0.00020273,2]
[370379942,1751987457760,-460.0,0.00020273,2]
[370379943,1751987457770,-485.36,0.00020273,2]
[370379944,1751987457779,-3642.47,0.00020273,2]
[370379945,1751987457789,-460.0,0.00020273,2]
[370379946,1751987457799,-3488.24,0.00020273,2]
[370379947,1751987457808,-460.0,0.00020273,2]
[370379948,1751987457818,-460.0,0.00020273,2]
[370379949,1751987457827,-881.6,0.00020273,2]
[370379950,1751987457837,-151.0,0.00020273,2]
[370379951,1751987457846,-460.0,0.00020273,2]
[370379952,1751987457856,-1190.04,0.00020273,2]
[370379953,1751987457866,-5308.08,0.00020273,2]
[370379954,1751987457875,-858.29,0.00020273,2]
[370379955,1751987457885,-460.0,0.00020273,2]
[370379956,1751987457894,-460.0,0.00020273,2]
[370379957,1751987457903,-460.0,0.00020273,2]
[370379958,1751987457913,-693.69,0.00020273,2]
[370379959,1751987457922,-889.03,0.00020273,2]
[370379960,1751987457931,-911.11,0.00020273,2]
[370379961,1751987457941,-460.0,0.00020273,2]
[370379962,1751987457950,-460.0,0.00020273,2]
[370379963,1751987457959,-460.0,0.00020273,2]
[370379964,1751987457969,-849.52,0.00020273,2]
[370379965,1751987457978,-1608.55,0.00020273,2]
[370379966,1751987457987,-512.35,0.00020273,2]
[370379967,1751987457997,-1680.8,0.00020273,2]
[370379968,1751987458007,-3263.91,0.00020273,2]
[370379969,1751987458016,-151.0,0.00020273,2]
[370379970,1751987458025,-460.0,0.00020273,2]
[370379971,1751987458035,-460.0,0.00020273,2]
[370379972,1751987458044,-825.63,0.00020273,2]
[370379973,1751987458052,-1917.38,0.00020273,2]
[370379974,1751987458062,-1349.37,0.00020273,2]
[370379975,1751987458071,-7169.81,0.00020273,2]
[370379976,1751987458080,-460.0,0.00020273,2]
[370379977,1751987458089,-764.25,0.00020273,2]
[370379978,1751987458099,-460.0,0.00020273,2]
[370379979,1751987458111,-3212.24,0.00020273,2]
[370379980,1751987458120,-460.0,0.00020273,2]
[370379981,1751987458129,-975.12,0.00020273,2]
[370379982,1751987458139,-460.0,0.00020273,2]
[370379983,1751987458149,-3732.02,0.00020273,2]
[370379984,1751987458158,-517.2,0.00020273,2]
[370379985,1751987458168,-1124.04,0.00020273,2]
[370379986,1751987458180,-339.99423201,0.00020273,2]
[370379987,1751987458189,-2185.37956667,0.00020275,2]
[370379988,1751987458198,-3853.49006069,0.00020314,3]
[370379989,1751987458208,-12586.7184932,0.00020319,2]
[370379990,1751987458218,-160.0,0.00020319,2]
[370379991,1751987458227,-160.0,0.00020319,2]
[370379992,1751987458237,-160.0,0.00020319,2]
[370379993,1751987458246,-160.0,0.00020319,2]
[370379994,1751987458255,-160.0,0.00020319,2]
[370379995,1751987458266,-215.2437778,0.00020319,2]
[370379996,1751987458275,-848.40570879,0.00020319,2]
[370379997,1751987458284,-230.51100374,0.00020319,2]
[370379998,1751987458294,-837.89306043,0.00020319,2]
[370379999,1751987458304,-214.10276668,0.00020319,2]
[370380000,1751987458313,-160.0,0.00020319,2]
[370380001,1751987458322,-160.0,0.00020319,2]
[370380002,1751987458331,-1000.0,0.00020321,2]
[370380003,1751987458341,-500.0,0.00020344,2]
[370380004,1751987458351,-153.0,0.00020438,2]
[370380005,1751987458363,-153.0,0.00020438,2]
[370380006,1751987458372,-153.0,0.00020438,2]
[370380007,1751987458382,-153.0,0.00020438,2]
[370380008,1751987458391,-153.0,0.00020438,2]
[370380009,1751987458400,-153.0,0.00020438,2]
[370380010,1751987458410,-153.0,0.00020438,2]
[370380011,1751987458419,-153.0,0.00020438,2]
[370380012,1751987458429,-306.0,0.00020438,2]
[370380013,1751987458438,-153.0,0.00020438,2]
[370380014,1751987458447,-153.0,0.00020438,2]
[370380015,1751987458456,-500.0,0.00020439,2]
[370380016,1751987458466,-10838.73568553,0.00020494,2]
[370380017,1751987458475,-2000.0,0.00020516,2]
[370380018,1751987458484,-160.0,0.00020521,3]
[370380019,1751987458494,-12586.7184932,0.00020521,3]
[370380020,1751987458503,-3853.49006069,0.00020521,3]
[370380021,1751987458513,-848.40570879,0.00020521,3]
[370380022,1751987458522,-213.70700914,0.00020521,3]
[370380023,1751987458531,-500.0,0.00020534,2]
[370380024,1751987458541,-500.0,0.00020547,14]
[370380025,1751987458551,-460.0,0.00020547,2]
[370380026,1751987458560,-460.0,0.00020547,2]
[370380027,1751987458569,-520.37,0.00020547,2]
[370380028,1751987458579,-644.05,0.00020547,2]
[370380029,1751987458588,-542.013902,0.00020547,2]
[370380030,1751987458599,-460.0,0.00020547,2]
[370380031,1751987458612,-460.0,0.00020547,2]
[370380032,1751987458622,-151.0,0.00020547,2]
[370380033,1751987458631,-460.0,0.00020547,2]
[370380034,1751987458640,-460.0,0.00020547,2]
[370380035,1751987458649,-460.0,0.00020547,2]
[370380036,1751987458659,-460.0,0.00020547,2]
[370380037,1751987458667,-151.0,0.00020547,2]
[370380038,1751987458677,-540.0,0.00020547,2]
[370380039,1751987458686,-151.0,0.00020547,2]
[370380040,1751987458695,-460.0,0.00020547,2]
[370380041,1751987458704,-590.3,0.00020547,2]
[370380042,1751987458714,-460.0,0.00020547,2]
[370380043,1751987458723,-460.0,0.00020547,2]
[370380044,1751987458733,-151.0,0.00020547,2]
[370380045,1751987458742,-460.0,0.00020547,2]
[370380046,1751987458751,-460.0,0.00020547,2]
[370380047,1751987458760,-460.0,0.00020547,2]
[370380048,1751987458770,-591.30538433,0.00020547,2]
[370380049,1751987458779,-460.0,0.00020547,2]
[370380050,1751987458789,-460.0,0.00020547,2]
[370380051,1751987458798,-460.0,0.00020547,2]
[370380052,1751987458807,-460.0,0.00020547,2]
[370380053,1751987458817,-460.0,0.00020547,2]
[370380054,1751987458826,-571.79,0.00020547,2]
[370380055,1751987458835,-460.0,0.00020547,2]
[370380056,1751987458845,-655.17,0.00020547,2]
[370380057,1751987458855,-460.0,0.00020547,2]
[370380058,1751987458865,-460.0,0.00020547,2]
[370380059,1751987458874,-229.07473507,0.00020547,2]
[370380060,1751987458883,-460.0,0.00020547,2]
[370380061,1751987458893,-460.0,0.00020547,2]
[370380062,1751987458903,-460.0,0.00020547,2]
[370380063,1751987458911,-460.0,0.00020547,2]
[370380064,1751987458921,-460.0,0.00020547,2]
[370380065,1751987458930,-460.0,0.00020547,2]
[370380066,1751987458939,-460.0,0.00020547,2]
[370380067,1751987458948,-1068.61,0.00020547,2]
[370380068,1751987458957,-460.0,0.00020547,2]
[370380069,1751987458967,-460.0,0.00020547,2]
[370380070,1751987458976,-196.45007949,0.00020547,2]
[370380071,1751987458986,-990.47,0.00020547,2]
[370380072,1751987458995,-181.97164219,0.00020547,2]
[370380073,1751987459005,-460.0,0.00020547,2]
[370380074,1751987459014,-460.0,0.00020547,2]
[370380075,1751987459023,-460.0,0.00020547,2]
[370380076,1751987459032,-529.08,0.00020547,2]
[370380077,1751987459042,-460.0,0.00020547,2]
[370380078,1751987459051,-460.0,0.00020547,2]
[370380079,1751987459060,-1094.43,0.00020547,2]
[370380080,1751987459069,-460.0,0.00020547,2]
[370380081,1751987459078,-151.0,0.00020547,2]
[370380082,1751987459087,-460.0,0.00020547,2]
[370380083,1751987459096,-408.41021163,0.00020547,2]
[370380084,1751987459106,-610.0,0.00020547,2]
[370380085,1751987459115,-460.0,0.00020547,2]
[370380086,1751987459124,-460.0,0.00020547,2]
[370380087,1751987459133,-284.31746798,0.00020547,2]
[370380088,1751987459142,-702.73,0.00020547,2]
[370380089,1751987459151,-460.0,0.00020547,2]
[370380090,1751987459160,-460.0,0.00020547,2]
[370380091,1751987459170,-460.0,0.00020547,2]
[370380092,1751987459312,-460.0,0.00020547,2]
[370380093,1751987459322,-2535.92,0.00020547,2]
[370380094,1751987459331,-1117.62,0.00020547,2]
[370380095,1751987459340,-460.0,0.00020547,2]
[370380096,1751987459349,-460.0,0.00020547,2]
[370380097,1751987459360,-489.06,0.00020547,2]
[370380098,1751987459368,-460.0,0.00020547,2]
[370380099,1751987459378,-638.54,0.00020547,2]
[370380100,1751987459387,-460.0,0.00020547,2]
[370380101,1751987459396,-460.0,0.00020547,2]
[370380102,1751987459405,-460.0,0.00020547,2]
[370380103,1751987459414,-906.56,0.00020547,2]
[370380104,1751987459424,-6605.47,0.00020547,2]
[370380105,1751987459433,-460.0,0.00020547,2]
[370380106,1751987459442,-1836.51,0.00020547,2]
[370380107,1751987459452,-3531.13,0.00020547,2]
[370380108,1751987459461,-460.0,0.00020547,2]
[370380109,1751987459470,-769.53,0.00020547,2]
[370380110,1751987459480,-460.0,0.00020547,2]
[370380111,1751987459489,-4999.22,0.00020547,2]
[370380112,1751987459498,-460.0,0.00020547,2]
[370380113,1751987459507,-1438.66,0.00020547,2]
[370380114,1751987459517,-460.0,0.00020547,2]
[370380115,1751987459526,-1029.02,0.00020547,2]
[370380116,1751987459536,-551.13,0.00020547,2]
[370380117,1751987459545,-3199.43,0.00020547,2]
[370380118,1751987459555,-1136.93,0.00020547,2]